[Event "SS Manhem Chess Week 2019 Goteborg Open"]
[Site "Molnlycke kulturhus, Biblioteksgatan 2, Molnlycke, Sweden"]
[Date "2019.08.18"]
[Round "8.1"]
[White "Wiedenkeller, Michael"]
[Black "Seo, Jung Min"]
[Result "1/2-1/2"]
[TimeControl "15 minutes + 5 seconds per move from move one (Round 1 - 4) / 90 minutes + 30 seconds per move from move one (Round 5 - 8)"]
[WhiteTitle "IM"]
[BlackTitle "FM"]
[WhiteFideId "1700146"]
[BlackFideId "1734687"]
[WhiteElo "2456"]
[BlackElo "2409"]

1. d4 {[%clk 01:30:52]} {[%emt 00:00:08]} Nf6 {[%clk 01:30:58]} {[%emt
00:00:03]} 2. c4 {[%clk 01:31:13]} {[%emt 00:00:09]} b6 {[%clk 01:31:26]}
{[%emt 00:00:02]} 3. f3 {[%clk 01:30:20]} {[%emt 00:01:22]} c5 {[%clk
01:27:45]} {[%emt 00:04:11]} 4. d5 {[%clk 01:29:58]} {[%emt 00:00:52]} d6
{[%clk 01:26:35]} {[%emt 00:01:40]} 5. e4 {[%clk 01:29:49]} {[%emt 00:00:39]}
g6 {[%clk 01:26:37]} {[%emt 00:00:29]} 6. Bg5 {[%clk 01:27:13]} {[%emt
00:03:06]} Bg7 {[%clk 01:25:52]} {[%emt 00:01:14]} 7. Qd2 {[%clk 01:27:12]}
{[%emt 00:00:31]} h6 {[%clk 01:23:42]} {[%emt 00:02:41]} 8. Bf4 {[%clk
01:22:02]} {[%emt 00:05:40]} Nbd7 {[%clk 01:23:04]} {[%emt 00:01:08]} 9. Nc3
{[%clk 01:21:55]} {[%emt 00:00:37]} Ne5 {[%clk 01:23:02]} {[%emt 00:00:32]} 10.
h3 {[%clk 01:18:08]} {[%emt 00:04:17]} Nh5 {[%clk 01:14:06]} {[%emt 00:09:26]}
11. Bh2 {[%clk 01:18:01]} {[%emt 00:00:36]} g5 {[%clk 01:14:25]} {[%emt
00:00:12]} 12. g4 {[%clk 01:14:49]} {[%emt 00:03:42]} Nf4 {[%clk 01:09:32]}
{[%emt 00:05:24]} 13. Bxf4 {[%clk 01:13:29]} {[%emt 00:01:50]} gxf4 {[%clk
01:09:50]} {[%emt 00:00:12]} 14. Qxf4 {[%clk 01:13:38]} {[%emt 00:00:21]} Ba6
{[%clk 01:07:57]} {[%emt 00:02:23]} 15. Nb5 {[%clk 01:12:16]} {[%emt 00:01:52]}
Bxb5 {[%clk 01:02:32]} {[%emt 00:05:55]} 16. cxb5 {[%clk 01:12:44]} {[%emt
00:00:02]} Ng6 {[%clk 01:01:44]} {[%emt 00:01:17]} 17. Qd2 {[%clk 01:09:59]}
{[%emt 00:03:15]} e6 {[%clk 01:01:17]} {[%emt 00:00:57]} 18. Rh2 {[%clk
01:02:48]} {[%emt 00:07:40]} Be5 {[%clk 01:00:02]} {[%emt 00:01:45]} 19. Rg2
{[%clk 00:57:34]} {[%emt 00:05:43]} Qf6 {[%clk 00:56:46]} {[%emt 00:05:58]} 20.
Bc4 {[%clk 00:55:30]} {[%emt 00:00:23]} Nh4 {[%clk 00:54:56]} {[%emt 00:02:20]}
21. Rf2 {[%clk 00:53:49]} {[%emt 00:02:11]} Bg3 {[%clk 00:53:20]} {[%emt
00:02:06]} 22. Kf1 {[%clk 00:48:23]} {[%emt 00:05:56]} Bxf2 {[%clk 00:52:52]}
{[%emt 00:00:58]} 23. Qxf2 {[%clk 00:46:32]} {[%emt 00:02:20]} e5 {[%clk
00:52:05]} {[%emt 00:01:17]} 24. Qg3 {[%clk 00:45:03]} {[%emt 00:01:59]} O-O-O
{[%clk 00:51:19]} {[%emt 00:01:17]} 25. Kf2 {[%clk 00:43:28]} {[%emt 00:02:04]}
Rdg8 {[%clk 00:51:22]} {[%emt 00:00:27]} 26. Rf1 {[%clk 00:37:39]} {[%emt
00:06:19]} h5 {[%clk 00:50:13]} {[%emt 00:01:39]} 27. Ke2 {[%clk 00:34:26]}
{[%emt 00:03:44]} Ng6 {[%clk 00:49:38]} {[%emt 00:01:04]} 28. Kd1 {[%clk
00:34:11]} {[%emt 00:00:45]} Nf4 {[%clk 00:49:04]} {[%emt 00:01:04]} 29. Rf2
{[%clk 00:33:19]} {[%emt 00:01:21]} Qg6 {[%clk 00:49:16]} {[%emt 00:00:18]} 30.
Bf1 {[%clk 00:31:12]} {[%emt 00:02:37]} f5 {[%clk 00:49:13]} {[%emt 00:00:33]}
31. Ne2 {[%clk 00:30:02]} {[%emt 00:01:41]} fxe4 {[%clk 00:47:21]} {[%emt
00:02:22]} 32. Nxf4 {[%clk 00:27:15]} {[%emt 00:03:16]} exf4 {[%clk 00:47:47]}
{[%emt 00:00:04]} 33. Qxf4 {[%clk 00:27:39]} {[%emt 00:00:05]} exf3 {[%clk
00:46:45]} {[%emt 00:01:32]} 34. Rxf3 {[%clk 00:26:56]} {[%emt 00:01:13]} Qb1+
{[%clk 00:46:28]} {[%emt 00:00:48]} 35. Qc1 {[%clk 00:26:33]} {[%emt 00:00:53]}
Qxa2 {[%clk 00:42:45]} {[%emt 00:04:13]} 36. Bc4 {[%clk 00:24:51]} {[%emt
00:02:12]} Qa4+ {[%clk 00:43:10]} {[%emt 00:00:04]} 37. b3 {[%clk 00:24:26]}
{[%emt 00:00:55]} Qa2 {[%clk 00:43:22]} {[%emt 00:00:18]} 38. Qf4 {[%clk
00:23:00]} {[%emt 00:01:57]} Qb1+ {[%clk 00:43:18]} {[%emt 00:00:33]} 39. Kd2
{[%clk 00:23:18]} {[%emt 00:00:12]} Qb2+ {[%clk 00:41:04]} {[%emt 00:02:43]} 40.
Kd1 {[%clk 00:23:09]} {[%emt 00:00:40]} Qe5 {[%emt 00:03:39]} 41. Qxe5 {[%emt
00:00:07]} dxe5 {[%emt 00:00:48]} 42. Bd3 {[%emt 00:04:37]} hxg4 {[%clk
00:39:32]} {[%emt 00:00:03]} 43. hxg4 {[%emt 00:00:19]} Kd8 {[%clk 00:37:37]}
{[%emt 00:02:17]} 44. Bf5 {[%clk 00:17:37]} {[%emt 00:01:09]} Ke7 {[%clk
00:37:34]} {[%emt 00:00:34]} 45. Kd2 {[%clk 00:16:28]} {[%emt 00:01:39]} Rh2+
{[%clk 00:37:18]} {[%emt 00:00:46]} 46. Ke3 {[%clk 00:15:51]} {[%emt 00:01:07]}
Kd6 {[%clk 00:35:28]} {[%emt 00:02:20]} 47. Be6 {[%clk 00:15:53]} {[%emt
00:00:27]} Rg6 {[%clk 00:35:52]} {[%emt 00:00:06]} 48. Ke4 {[%clk 00:13:31]}
{[%emt 00:02:52]} Rxe6 {[%clk 00:33:45]} {[%emt 00:02:37]} 49. dxe6 {[%clk
00:13:57]} {[%emt 00:00:04]} Kxe6 {[%clk 00:34:14]} {[%emt 00:00:01]} 50. Rg3
{[%clk 00:13:50]} {[%emt 00:00:37]} Rd2 {[%clk 00:33:54]} {[%emt 00:00:50]} 51.
g5 {[%clk 00:12:51]} {[%emt 00:01:29]} Rd4+ {[%clk 00:34:19]} {[%emt 00:00:05]}
52. Ke3 {[%clk 00:13:15]} {[%emt 00:00:06]} Kf7 {[%clk 00:34:14]} {[%emt
00:00:35]} 53. g6+ {[%clk 00:09:30]} {[%emt 00:04:15]} Kg7 {[%clk 00:34:43]} 54.
Rg1 {[%clk 00:07:21]} {[%emt 00:02:39]} Rb4 {[%clk 00:33:41]} {[%emt 00:01:32]}
55. Ra1 {[%clk 00:07:40]} {[%emt 00:00:11]} Kxg6 {[%clk 00:33:57]} {[%emt
00:00:14]} 56. Rxa7 {[%clk 00:08:06]} {[%emt 00:00:05]} Rxb3+ {[%clk 00:33:56]}
{[%emt 00:00:31]} 57. Ke4 {[%clk 00:08:34]} {[%emt 00:00:02]} Kf6 {[%clk
00:34:12]} {[%emt 00:00:14]} 58. Rh7 {[%clk 00:07:53]} {[%emt 00:01:10]} Rxb5
{[%clk 00:34:37]} {[%emt 00:00:06]} 59. Rh6+ {[%clk 00:08:09]} {[%emt
00:00:13]} Ke7 {[%clk 00:34:51]} {[%emt 00:00:15]} 60. Kxe5 {[%clk 00:07:55]}
{[%emt 00:00:45]} Rb1 {[%clk 00:35:07]} {[%emt 00:00:14]} 61. Rh7+ {[%clk
00:08:08]} {[%emt 00:00:17]} Kf8 {[%clk 00:34:35]} {[%emt 00:01:02]} 62. Kd5
{[%clk 00:08:16]} {[%emt 00:00:21]} Rb4 {[%clk 00:34:44]} {[%emt 00:00:22]} 63.
Rc7 {[%clk 00:08:01]} {[%emt 00:00:45]} Ke8 {[%clk 00:35:04]} {[%emt 00:00:09]}
64. Rh7 {[%clk 00:05:26]} {[%emt 00:03:05]} c4 {[%clk 00:35:06]} {[%emt
00:00:29]} 65. Ke6 {[%clk 00:05:43]} {[%emt 00:00:13]} Kf8 {[%clk 00:35:31]}
{[%emt 00:00:05]} 66. Kf6 {[%clk 00:06:07]} {[%emt 00:00:06]} Ke8 {[%clk
00:35:23]} {[%emt 00:00:38]} 67. Ke6 {[%clk 00:06:34]} {[%emt 00:00:04]} Kd8
{[%clk 00:35:47]} {[%emt 00:00:06]} 68. Kd6 {[%clk 00:07:01]} {[%emt 00:00:03]}
Kc8 {[%clk 00:36:12]} {[%emt 00:00:05]} 69. Kc6 {[%clk 00:07:24]} {[%emt
00:00:07]} Kb8 {[%clk 00:36:29]} {[%emt 00:00:12]} 70. Rh8+ {[%clk 00:07:44]}
{[%emt 00:00:10]} Ka7 {[%clk 00:36:57]} {[%emt 00:00:03]} 71. Rh7+ {[%clk
00:08:06]} {[%emt 00:00:08]} Ka6 {[%clk 00:37:21]} {[%emt 00:00:06]} 72. Rh8
{[%clk 00:08:29]} {[%emt 00:00:06]} Ka7 {[%clk 00:37:30]} {[%emt 00:00:22]} 73.
Rh7+ {[%emt 00:00:04]} 1/2-1/2

[Event "SS Manhem Chess Week 2019 Goteborg Open"]
[Site "Molnlycke kulturhus, Biblioteksgatan 2, Molnlycke, Sweden"]
[Date "2019.08.18"]
[Round "8.2"]
[White "Ahlander, Bjorn"]
[Black "Golubka, Petro"]
[Result "0-1"]
[TimeControl "15 minutes + 5 seconds per move from move one (Round 1 - 4) / 90 minutes + 30 seconds per move from move one (Round 5 - 8)"]
[WhiteTitle "IM"]
[BlackTitle "IM"]
[WhiteFideId "1700251"]
[BlackFideId "14114224"]
[WhiteElo "2390"]
[BlackElo "2479"]

1. d4 {[%clk 01:30:57]} {[%emt 01:23:28]} Nf6 {[%clk 01:30:09]} {[%emt
00:00:52]} 2. c4 {[%clk 01:31:19]} {[%emt 00:00:07]} g6 {[%clk 01:30:37]}
{[%emt 00:00:03]} 3. Nc3 {[%clk 01:31:39]} {[%emt 00:00:09]} Bg7 {[%clk
01:31:03]} {[%emt 00:00:05]} 4. e4 {[%clk 01:31:36]} {[%emt 00:00:32]} O-O
{[%clk 01:31:28]} {[%emt 00:00:05]} 5. Nf3 {[%clk 01:31:54]} {[%emt 00:00:11]}
d6 {[%clk 01:31:54]} {[%emt 00:00:05]} 6. Be2 {[%clk 01:32:17]} {[%emt
00:00:06]} e5 {[%clk 01:32:18]} {[%emt 00:00:07]} 7. O-O {[%clk 01:31:52]}
{[%emt 00:00:54]} Nc6 {[%clk 01:32:44]} {[%emt 00:00:04]} 8. Be3 {[%clk
01:32:01]} {[%emt 00:00:20]} Ng4 {[%clk 01:32:00]} {[%emt 00:01:15]} 9. Bg5
{[%clk 01:32:24]} {[%emt 00:00:07]} f6 {[%clk 01:32:23]} {[%emt 00:00:08]} 10.
Bc1 {[%clk 01:32:48]} {[%emt 00:00:05]} f5 {[%clk 01:32:30]} {[%emt 00:00:23]}
11. Bg5 {[%clk 01:33:09]} {[%emt 00:00:08]} Bf6 {[%clk 01:32:01]} {[%emt
00:01:00]} 12. Bxf6 {[%clk 01:32:51]} {[%emt 00:00:47]} Nxf6 {[%clk 01:31:40]}
{[%emt 00:00:52]} 13. exf5 {[%clk 01:31:31]} {[%emt 00:01:49]} gxf5 {[%clk
01:31:09]} {[%emt 00:01:03]} 14. dxe5 {[%clk 01:30:24]} {[%emt 00:01:37]} dxe5
{[%clk 01:31:35]} {[%emt 00:00:05]} 15. Qxd8 {[%clk 01:28:37]} {[%emt
00:02:17]} Rxd8 {[%clk 01:31:00]} {[%emt 00:01:06]} 16. Nd5 {[%clk 01:26:04]}
{[%emt 00:03:01]} Ne8 {[%clk 01:29:47]} {[%emt 00:01:44]} 17. Rfd1 {[%clk
01:23:34]} {[%emt 00:02:59]} Be6 {[%clk 01:29:26]} {[%emt 00:00:52]} 18. Kf1
{[%clk 01:01:00]} {[%emt 00:23:03]} Kg7 {[%clk 01:16:47]} {[%emt 00:13:10]} 19.
b4 {[%clk 00:56:18]} {[%emt 00:05:11]} Bxd5 {[%clk 01:07:22]} {[%emt 00:09:56]}
20. cxd5 {[%clk 00:54:16]} {[%emt 00:02:31]} Nxb4 {[%clk 01:07:46]} {[%emt
00:00:07]} 21. Bc4 {[%clk 00:52:22]} {[%emt 00:02:23]} Nd6 {[%clk 01:01:32]}
{[%emt 00:06:44]} 22. Rab1 {[%clk 00:50:40]} {[%emt 00:02:12]} a5 {[%clk
00:50:47]} {[%emt 00:11:16]} 23. Rdc1 {[%clk 00:40:57]} {[%emt 00:10:11]} e4
{[%clk 00:33:57]} {[%emt 00:17:20]} 24. Nd2 {[%clk 00:30:47]} {[%emt 00:10:40]}
b6 {[%clk 00:29:36]} {[%emt 00:04:52]} 25. g4 {[%clk 00:25:06]} {[%emt
00:06:09]} fxg4 {[%clk 00:27:19]} {[%emt 00:02:48]} 26. Bb3 {[%clk 00:20:33]}
{[%emt 00:05:03]} Rd7 {[%clk 00:25:41]} {[%emt 00:02:09]} 27. Rc3 {[%clk
00:19:48]} {[%emt 00:01:14]} Rf8 {[%clk 00:23:13]} {[%emt 00:02:59]} 28. Kg1
{[%clk 00:16:17]} {[%emt 00:04:01]} h5 {[%clk 00:19:28]} {[%emt 00:04:16]} 29.
h3 {[%clk 00:15:18]} {[%emt 00:01:28]} gxh3 {[%clk 00:17:18]} {[%emt 00:02:41]}
30. Rxh3 {[%clk 00:15:20]} {[%emt 00:00:28]} Rf5 {[%clk 00:16:42]} {[%emt
00:01:06]} 31. f3 {[%clk 00:08:01]} {[%emt 00:07:48]} Rg5+ {[%clk 00:13:16]}
{[%emt 00:03:57]} 32. Kh2 {[%clk 00:07:00]} {[%emt 00:01:32]} Nxd5 {[%clk
00:13:03]} {[%emt 00:00:43]} 33. fxe4 {[%clk 00:06:03]} {[%emt 00:01:26]} Nf4
{[%clk 00:11:24]} {[%emt 00:02:09]} 34. Rf3 {[%clk 00:05:20]} {[%emt 00:01:11]}
Ng6 {[%clk 00:11:15]} {[%emt 00:00:41]} 35. Rg3 {[%clk 00:02:46]} {[%emt
00:03:04]} Rxg3 {[%clk 00:11:31]} {[%emt 00:00:14]} 36. Kxg3 {[%clk 00:03:14]}
{[%emt 00:00:02]} Re7 {[%clk 00:10:08]} {[%emt 00:01:53]} 37. Kf3 {[%clk
00:03:04]} {[%emt 00:00:39]} Nf7 {[%clk 00:06:58]} {[%emt 00:03:41]} 38. Ke3
{[%clk 00:03:17]} {[%emt 00:00:16]} Nfe5 {[%clk 00:07:15]} {[%emt 00:00:13]} 39.
Rh1 {[%clk 00:03:09]} {[%emt 00:00:37]} h4 {[%clk 00:05:40]} {[%emt 00:02:06]}
40. Rg1 {[%clk 00:02:56]} {[%emt 00:00:43]} Rd7 {[%clk 00:05:19]} {[%emt
00:00:50]} 41. Bd5 {[%clk 00:02:41]} {[%emt 00:00:45]} h3 {[%clk 00:02:52]}
{[%emt 00:02:58]} 42. Nc4 {[%clk 00:02:01]} {[%emt 00:01:10]} Rxd5 {[%clk
00:02:06]} {[%emt 00:01:18]} 43. exd5 {[%clk 00:02:28]} {[%emt 00:00:02]} Nxc4+
{[%clk 00:02:30]} {[%emt 00:00:06]} 44. Kd4 {[%clk 00:01:58]} {[%emt 00:00:59]}
Nd6 {[%clk 00:02:49]} {[%emt 00:00:11]} 45. Rh1 {[%clk 00:01:47]} {[%emt
00:00:40]} Nf5+ {[%clk 00:03:00]} {[%emt 00:00:20]} 46. Kc4 {[%clk 00:01:49]}
{[%emt 00:00:27]} Nf4 {[%clk 00:03:12]} {[%emt 00:00:18]} 47. Kb5 {[%clk
00:01:52]} {[%emt 00:00:28]} Nxd5 {[%clk 00:02:16]} {[%emt 00:01:26]} 48. Kc6
{[%clk 00:01:46]} {[%emt 00:00:34]} Nfe7+ {[%clk 00:02:25]} {[%emt 00:00:21]}
49. Kd7 {[%clk 00:01:25]} {[%emt 00:00:51]} c5 {[%clk 00:02:25]} {[%emt
00:00:31]} 50. Rxh3 {[%clk 00:01:05]} {[%emt 00:00:49]} c4 {[%clk 00:02:38]}
{[%emt 00:00:17]} 51. Rf3 {[%clk 00:00:38]} {[%emt 00:00:57]} Ng6 {[%clk
00:01:54]} {[%emt 00:01:15]} 52. Rf1 {[%clk 00:00:48]} {[%emt 00:00:19]} Ngf4
{[%clk 00:01:57]} {[%emt 00:00:28]} 53. Kc6 {[%clk 00:00:54]} {[%emt 00:00:23]}
c3 {[%clk 00:02:11]} {[%emt 00:00:16]} 54. a4 {[%clk 00:00:53]} {[%emt
00:00:31]} Kf6 {[%clk 00:02:08]} {[%emt 00:00:34]} 55. Rc1 {[%clk 00:00:31]}
{[%emt 00:00:53]} Ke5 {[%clk 00:01:52]} {[%emt 00:00:46]} 56. Rxc3 {[%clk
00:00:45]} {[%emt 00:00:16]} Nxc3 {[%clk 00:02:15]} {[%emt 00:00:07]} 57. Kxb6
{[%clk 00:01:11]} {[%emt 00:00:04]} Nfd5+ {[%clk 00:02:27]} {[%emt 00:00:18]}
58. Kxa5 {[%clk 00:01:30]} {[%emt 00:00:11]} Kd6 {[%clk 00:02:40]} {[%emt
00:00:18]} 59. Ka6 {[%clk 00:01:58]} {[%emt 00:00:02]} Kc6 {[%clk 00:02:52]}
{[%emt 00:00:18]} 60. Ka5 {[%clk 00:01:08]} {[%emt 00:01:20]} Ne4 {[%clk
00:03:08]} {[%emt 00:00:15]} 61. Ka6 {[%clk 00:01:34]} {[%emt 00:00:04]} Nd6
{[%clk 00:03:16]} {[%emt 00:00:22]} 62. Ka5 {[%clk 00:01:54]} {[%emt 00:00:09]}
Nc4+ {[%clk 00:03:25]} {[%emt 00:00:21]} 63. Ka6 {[%clk 00:02:21]} {[%emt
00:00:02]} Nb4+ {[%clk 00:03:45]} {[%emt 00:00:11]} 64. Ka7 {[%clk 00:02:49]}
{[%emt 00:00:02]} Kc7 {[%clk 00:04:04]} {[%emt 00:00:10]} 65. a5 {[%clk
00:02:27]} {[%emt 00:00:52]} Kc8 {[%clk 00:04:14]} {[%emt 00:00:21]} 66. Ka8
{[%clk 00:02:48]} {[%emt 00:00:09]} Nc6 {[%clk 00:04:39]} {[%emt 00:00:05]} 0-1

[Event "SS Manhem Chess Week 2019 Goteborg Open"]
[Site "Molnlycke kulturhus, Biblioteksgatan 2, Molnlycke, Sweden"]
[Date "2019.08.18"]
[Round "8.3"]
[White "Pham, Bich Ngoc"]
[Black "Le, Quang Long"]
[Result "0-1"]
[TimeControl "15 minutes + 5 seconds per move from move one (Round 1 - 4) / 90 minutes + 30 seconds per move from move one (Round 5 - 8)"]
[WhiteTitle "WIM"]
[BlackTitle "IM"]
[WhiteFideId "12401285"]
[BlackFideId "12401749"]
[WhiteElo "2176"]
[BlackElo "2411"]

1. f4 {[%clk 01:24:57]} {[%emt 00:06:02]} d5 {[%clk 01:30:00]} {[%emt
00:01:01]} 2. Nf3 {[%clk 01:25:19]} {[%emt 00:00:08]} g6 {[%clk 01:30:16]}
{[%emt 00:00:14]} 3. g3 {[%clk 01:25:41]} {[%emt 00:00:07]} Bg7 {[%clk
01:30:42]} {[%emt 00:00:05]} 4. Bg2 {[%clk 01:26:06]} {[%emt 00:00:05]} c6
{[%clk 01:31:06]} {[%emt 00:00:06]} 5. e3 {[%clk 01:26:17]} {[%emt 00:00:20]}
Nf6 {[%clk 01:30:46]} {[%emt 00:00:51]} 6. O-O {[%clk 01:26:38]} {[%emt
00:00:08]} O-O {[%clk 01:31:12]} {[%emt 00:00:04]} 7. d3 {[%clk 01:26:55]}
{[%emt 00:00:13]} Nbd7 {[%clk 01:31:16]} {[%emt 00:00:26]} 8. Ne5 {[%clk
01:26:29]} {[%emt 00:00:55]} Nxe5 {[%clk 01:28:52]} {[%emt 00:02:55]} 9. fxe5
{[%clk 01:26:50]} {[%emt 00:00:08]} Ng4 {[%clk 01:29:20]} {[%emt 00:00:02]} 10.
d4 {[%clk 01:27:13]} {[%emt 00:00:07]} f6 {[%clk 01:29:44]} {[%emt 00:00:06]}
11. exf6 {[%clk 01:23:34]} {[%emt 00:04:10]} exf6 {[%clk 01:29:43]} {[%emt
00:00:31]} 12. c4 {[%clk 01:23:10]} {[%emt 00:00:54]} dxc4 {[%clk 01:25:05]}
{[%emt 00:05:08]} 13. Nc3 {[%clk 01:23:31]} {[%emt 00:00:08]} f5 {[%clk
01:25:01]} {[%emt 00:00:35]} 14. d5 {[%clk 01:22:42]} {[%emt 00:01:19]} Bd7
{[%clk 01:24:11]} {[%emt 00:01:20]} 15. dxc6 {[%clk 01:22:50]} {[%emt
00:00:22]} Bxc6 {[%clk 01:24:32]} {[%emt 00:00:09]} 16. Bxc6 {[%clk 01:22:51]}
{[%emt 00:00:29]} bxc6 {[%clk 01:24:56]} {[%emt 00:00:07]} 17. Qe2 {[%clk
01:22:32]} {[%emt 00:00:49]} Qd3 {[%clk 01:24:40]} {[%emt 00:00:45]} 18. Rd1
{[%clk 01:22:51]} {[%emt 00:00:10]} Qxe2 {[%clk 01:25:04]} {[%emt 00:00:07]} 19.
Nxe2 {[%clk 01:23:18]} {[%emt 00:00:03]} Rfe8 {[%clk 01:25:18]} {[%emt
00:00:16]} 20. Nd4 {[%clk 01:23:21]} {[%emt 00:00:27]} Rad8 {[%clk 01:24:49]}
{[%emt 00:00:59]} 21. Bd2 {[%clk 01:23:21]} {[%emt 00:00:30]} Rxd4 {[%clk
01:23:57]} {[%emt 00:01:23]} 22. exd4 {[%clk 01:23:43]} {[%emt 00:00:07]} Bxd4+
{[%clk 01:24:23]} {[%emt 00:00:03]} 23. Kf1 {[%clk 01:23:59]} {[%emt 00:00:13]}
Nxh2+ {[%clk 01:24:49]} {[%emt 00:00:06]} 24. Kg2 {[%clk 01:24:24]} {[%emt
00:00:05]} Re2+ {[%clk 01:25:15]} {[%emt 00:00:04]} 25. Kh3 {[%clk 01:24:44]}
{[%emt 00:00:10]} Ng4 {[%clk 01:25:29]} {[%emt 00:00:17]} 0-1

[Event "SS Manhem Chess Week 2019 Goteborg Open"]
[Site "Molnlycke kulturhus, Biblioteksgatan 2, Molnlycke, Sweden"]
[Date "2019.08.18"]
[Round "8.4"]
[White "Torngren, Gustav"]
[Black "Blomqvist, Erik"]
[Result "0-1"]
[TimeControl "15 minutes + 5 seconds per move from move one (Round 1 - 4) / 90 minutes + 30 seconds per move from move one (Round 5 - 8)"]
[BlackTitle "GM"]
[WhiteFideId "1728970"]
[BlackFideId "1709437"]
[WhiteElo "2061"]
[BlackElo "2507"]

1. c4 {[%clk 01:29:27]} {[%emt 00:01:32]} Nf6 {[%clk 01:29:10]} {[%emt
00:01:50]} 2. Nc3 {[%clk 01:26:49]} {[%emt 00:03:08]} c5 {[%clk 01:29:26]}
{[%emt 00:00:15]} 3. g3 {[%clk 01:27:04]} {[%emt 00:00:15]} e6 {[%clk
01:29:46]} {[%emt 00:00:09]} 4. Nf3 {[%clk 01:27:09]} {[%emt 00:00:24]} b6
{[%clk 01:30:09]} {[%emt 00:00:09]} 5. Bg2 {[%clk 01:27:22]} {[%emt 00:00:17]}
Bb7 {[%clk 01:30:25]} {[%emt 00:00:14]} 6. O-O {[%clk 01:27:36]} {[%emt
00:00:16]} Be7 {[%clk 01:30:49]} {[%emt 00:00:06]} 7. d4 {[%clk 01:27:33]}
{[%emt 00:00:32]} cxd4 {[%clk 01:31:07]} {[%emt 00:00:12]} 8. Qxd4 {[%clk
01:27:48]} {[%emt 00:00:15]} O-O {[%clk 01:31:25]} {[%emt 00:00:12]} 9. Bg5
{[%clk 01:27:27]} {[%emt 00:00:50]} h6 {[%clk 01:31:28]} {[%emt 00:00:28]} 10.
Bxf6 {[%clk 01:20:12]} {[%emt 00:07:45]} Bxf6 {[%clk 01:31:46]} {[%emt
00:00:12]} 11. Qd3 {[%clk 01:20:33]} {[%emt 00:00:09]} Na6 {[%clk 01:31:42]}
{[%emt 00:00:34]} 12. Rac1 {[%clk 01:13:15]} {[%emt 00:07:47]} Qe7 {[%clk
01:30:10]} {[%emt 00:02:02]} 13. Rfd1 {[%clk 01:10:39]} {[%emt 00:03:06]} Rfd8
{[%clk 01:29:51]} {[%emt 00:00:48]} 14. Rd2 {[%clk 01:09:04]} {[%emt 00:02:06]}
Nc5 {[%clk 01:23:26]} {[%emt 00:06:55]} 15. Qb1 {[%clk 01:08:17]} {[%emt
00:01:17]} Bxc3 {[%clk 01:23:26]} {[%emt 00:00:31]} 16. Rxc3 {[%clk 01:02:04]}
{[%emt 00:06:43]} Ne4 {[%clk 01:23:42]} {[%emt 00:00:14]} 17. Ng5 {[%clk
01:02:21]} {[%emt 00:00:12]} Qxg5 {[%clk 01:24:01]} {[%emt 00:00:11]} 0-1

[Event "SS Manhem Chess Week 2019 Goteborg Open"]
[Site "Molnlycke kulturhus, Biblioteksgatan 2, Molnlycke, Sweden"]
[Date "2019.08.18"]
[Round "8.5"]
[White "Vypkhaniuk, Ihor"]
[Black "Ziegler, Ari"]
[Result "1-0"]
[TimeControl "15 minutes + 5 seconds per move from move one (Round 1 - 4) / 90 minutes + 30 seconds per move from move one (Round 5 - 8)"]
[WhiteTitle "FM"]
[BlackTitle "IM"]
[WhiteFideId "14112256"]
[BlackFideId "1700987"]
[WhiteElo "2405"]
[BlackElo "2300"]

1. g3 {[%clk 01:30:27]} {[%emt 00:00:32]} g6 {[%clk 01:29:00]} {[%emt
00:02:01]} 2. Bg2 {[%clk 01:30:19]} {[%emt 00:00:37]} Bg7 {[%clk 01:29:25]}
{[%emt 00:00:05]} 3. d4 {[%clk 01:30:27]} {[%emt 00:00:23]} Nf6 {[%clk
01:29:47]} {[%emt 00:00:08]} 4. e4 {[%clk 01:30:42]} {[%emt 00:00:15]} d6
{[%clk 01:30:07]} {[%emt 00:00:10]} 5. Ne2 {[%clk 01:30:47]} {[%emt 00:00:25]}
O-O {[%clk 01:30:19]} {[%emt 00:00:18]} 6. O-O {[%clk 01:29:54]} {[%emt
00:01:23]} e5 {[%clk 01:30:41]} {[%emt 00:00:08]} 7. Nbc3 {[%clk 01:29:31]}
{[%emt 00:00:54]} c6 {[%clk 01:29:06]} {[%emt 00:02:03]} 8. a4 {[%clk
01:26:25]} {[%emt 00:03:38]} a5 {[%clk 01:26:16]} {[%emt 00:03:20]} 9. h3
{[%clk 01:26:39]} {[%emt 00:00:16]} Nbd7 {[%clk 01:25:35]} {[%emt 00:01:11]} 10.
Be3 {[%clk 01:25:18]} {[%emt 00:01:52]} Re8 {[%clk 01:25:49]} {[%emt 00:00:15]}
11. Re1 {[%clk 01:18:19]} {[%emt 00:07:29]} Qc7 {[%clk 01:24:08]} {[%emt
00:02:11]} 12. g4 {[%clk 01:04:48]} {[%emt 00:14:02]} exd4 {[%clk 01:12:21]}
{[%emt 00:12:18]} 13. Bxd4 {[%clk 01:04:02]} {[%emt 00:01:16]} h5 {[%clk
01:11:42]} {[%emt 00:01:08]} 14. g5 {[%clk 01:02:26]} {[%emt 00:02:06]} Nh7
{[%clk 01:12:02]} {[%emt 00:00:09]} 15. Bxg7 {[%clk 01:00:56]} {[%emt
00:02:02]} Kxg7 {[%clk 01:12:25]} {[%emt 00:00:06]} 16. Qd4+ {[%clk 01:00:02]}
{[%emt 00:01:24]} Kg8 {[%clk 01:12:47]} {[%emt 00:00:08]} 17. f4 {[%clk
00:59:57]} {[%emt 00:00:35]} Qb6 {[%clk 00:56:05]} {[%emt 00:17:11]} 18. Red1
{[%clk 00:54:43]} {[%emt 00:05:46]} Nc5 {[%clk 00:56:05]} {[%emt 00:00:29]} 19.
b3 {[%clk 00:54:14]} {[%emt 00:01:00]} Be6 {[%clk 00:53:58]} {[%emt 00:02:37]}
20. Qf2 {[%clk 00:53:01]} {[%emt 00:01:42]} Rad8 {[%clk 00:53:05]} {[%emt
00:01:22]} 21. Rd2 {[%clk 00:53:02]} {[%emt 00:00:30]} Qc7 {[%clk 00:48:26]}
{[%emt 00:05:09]} 22. Rad1 {[%clk 00:52:07]} {[%emt 00:01:25]} b6 {[%clk
00:47:34]} {[%emt 00:01:23]} 23. Qg3 {[%clk 00:41:58]} {[%emt 00:10:39]} Nb7
{[%clk 00:37:19]} {[%emt 00:10:45]} 24. f5 {[%clk 00:38:09]} {[%emt 00:04:18]}
gxf5 {[%clk 00:37:12]} {[%emt 00:00:37]} 25. exf5 {[%clk 00:38:08]} {[%emt
00:00:32]} Bxf5 {[%clk 00:37:08]} {[%emt 00:00:34]} 26. Nd4 {[%clk 00:37:43]}
{[%emt 00:00:55]} Bd7 {[%clk 00:34:23]} {[%emt 00:03:15]} 27. Rf1 {[%clk
00:27:49]} {[%emt 00:10:24]} Re7 {[%clk 00:31:02]} {[%emt 00:03:50]} 28. Ne4
{[%clk 00:26:46]} {[%emt 00:01:33]} Be8 {[%clk 00:29:01]} {[%emt 00:02:32]} 29.
Nf6+ {[%clk 00:26:20]} {[%emt 00:00:56]} Kh8 {[%clk 00:29:22]} {[%emt
00:00:08]} 30. Qh4 {[%clk 00:26:02]} 1-0